fUSD/lending_fUSD_20250607
["ID","MTS","AMOUNT","RATE_DAILY","PERIOD"]
[364870441,1749282728007,-594.14,0.00029041,5]
[364870442,1749282728017,-1731.59,0.00029041,5]
[364870443,1749282728029,-487.67269586,0.00029041,5]
[364870444,1749282728039,-1143.16,0.00029041,5]
[364870445,1749282728050,-480.0,0.00029041,5]
[364870446,1749282728060,-2029.78,0.00029041,5]
[364870447,1749282728072,-2000.65,0.00029041,5]
[364870448,1749282728083,-480.0,0.00029041,5]
[364870449,1749282728094,-1386.31,0.00029041,5]
[364870450,1749282728104,-485.39,0.00029041,5]
[364870451,1749282728114,-683.94,0.00029041,5]
[364870452,1749282728125,-747.9,0.00029041,5]
[364870453,1749282728134,-1122.69,0.00029041,5]
[364870454,1749282728144,-480.0,0.00029041,5]
[364870455,1749282728154,-480.0,0.00029041,5]
[364870456,1749282728166,-480.0,0.00029041,5]
[364870457,1749282728176,-494.08,0.00029041,5]
[364870458,1749282728186,-518.65,0.00029041,5]
[364870459,1749282728196,-492.12,0.00029041,5]
[364870460,1749282728207,-1941.16,0.00029041,5]
[364870461,1749282728217,-788.44,0.00029041,5]
[364870462,1749282728227,-480.0,0.00029041,5]
[364870463,1749282728236,-480.0,0.00029041,5]
[364870464,1749282728246,-499.42,0.00029041,5]
[364870465,1749282728332,-2403.78,0.00029041,5]
[364870466,1749282728342,-757.09,0.00029041,5]
[364870467,1749282728351,-480.0,0.00029041,5]
[364870468,1749282728361,-957.28,0.00029041,5]
[364870469,1749282728371,-697.95,0.00029041,5]
[364870470,1749282728382,-575.71,0.00029041,5]
[364870471,1749282728392,-480.0,0.00029041,5]
[364870472,1749282728401,-748.21,0.00029041,5]
[364870473,1749282728411,-480.0,0.00029041,5]
[364870474,1749282728420,-607.22,0.00029041,5]
[364870475,1749282728430,-480.0,0.00029041,5]
[364870476,1749282728440,-5005.59,0.00029041,5]
[364870477,1749282728450,-10865.99,0.00029041,5]
[364870478,1749282728461,-4322.98,0.00029041,5]
[364870479,1749282728471,-1739.86,0.00029041,5]
[364870480,1749282728480,-630.74,0.00029041,5]
[364870481,1749282728489,-480.0,0.00029041,5]
[364870482,1749282728498,-480.0,0.00029041,5]
[364870483,1749282728507,-1078.23,0.00029041,5]
[364870484,1749282728516,-480.0,0.00029041,5]
[364870485,1749282728525,-1387.38,0.00029041,5]
[364870486,1749282728534,-689.06,0.00029041,5]
[364870487,1749282728544,-480.0,0.00029041,5]
[364870488,1749282728554,-16410.82,0.00029041,5]
[364870489,1749282728564,-1650.11,0.00029041,5]
[364870490,1749282728573,-7442.43,0.00029041,5]
[364870491,1749282728583,-3593.96,0.00029041,5]
[364870492,1749282728592,-749.65,0.00029041,5]
[364870493,1749282728602,-2124.13,0.00029041,5]
[364870494,1749282728611,-590.0,0.00029041,5]
[364870495,1749282728620,-816.17,0.00029041,5]
[364870496,1749282728630,-665.9,0.00029041,5]
[364870497,1749282728639,-2227.22,0.00029041,5]
[364870498,1749282728649,-1352.48,0.00029041,5]
[364870499,1749282728659,-507.82,0.00029041,5]
[364870500,1749282728668,-480.0,0.00029041,5]
[364870501,1749282728678,-1744.26,0.00029041,5]
[364870502,1749282728688,-480.0,0.00029041,5]
[364870503,1749282728697,-3612.7,0.00029041,5]
[364870504,1749282728707,-480.0,0.00029041,5]
[364870505,1749282728717,-549.21259675,0.00029041,5]
[364870506,1749282728729,-480.0,0.00029041,5]
[364870507,1749282728739,-480.0,0.00029041,5]
[364870508,1749282728749,-1656.96,0.00029041,5]
[364870509,1749282728759,-1260.39,0.00029041,5]
[364870510,1749282728768,-915.34,0.00029041,5]
[364870511,1749282728778,-510.86904215,0.00029041,5]
[364870512,1749282728787,-3111.73,0.00029041,5]
[364870513,1749282728797,-980.64,0.00029041,5]
[364870514,1749282728806,-642.18,0.00029041,5]
[364870515,1749282728815,-279.10775981,0.00029045,7]
[364870516,1749282728824,-218.84593086,0.00029045,7]
[364870517,1749282728833,-150.0,0.00029057,7]
[364870518,1749282728843,-279.10775981,0.00029077,7]
[364870519,1749282728853,-218.84593086,0.00029077,7]
[364870520,1749282728863,-150.0,0.00029082,7]
[364870521,1749282728872,-150.0,0.00029082,7]
[364870522,1749282728885,-150.0,0.00029082,7]
[364870523,1749282728895,-1000.0,0.000291,2]
[364870524,1749282728905,-150.0,0.000291,7]
[364870525,1749282728915,-279.10775981,0.00029109,7]
[364870526,1749282728925,-218.84593086,0.00029109,7]
[364870527,1749282728935,-150.0,0.00029117,7]
[364870528,1749282728945,-150.0,0.00029117,7]
[364870529,1749282728955,-150.0,0.00029127,7]
[364870530,1749282728966,-279.10775981,0.00029141,7]
[364870531,1749282728975,-218.84593086,0.00029141,7]
[364870532,1749282728985,-150.0,0.00029143,7]
[364870533,1749282728995,-150.0,0.00029147,7]
[364870534,1749282729004,-150.0,0.00029157,7]
[364870535,1749282729014,-150.0,0.00029172,7]
[364870536,1749282729025,-279.10775981,0.00029173,7]
[364870537,1749282729036,-218.84593086,0.00029173,7]
[364870538,1749282729046,-1000.0,0.00029181,7]
[364870539,1749282729057,-150.0,0.00029186,7]
[364870540,1749282729066,-150.0,0.00029198,7]
[364870541,1749282729076,-1000.0,0.000292,2]
[364870542,1749282729086,-636.82,0.00029205,5]
[364870543,1749282729096,-151.0,0.00029205,7]
[364870544,1749282729105,-151.0,0.00029205,7]
[364870545,1749282729115,-151.0,0.00029205,7]
[364870546,1749282729124,-151.0,0.00029205,7]
[364870547,1749282729133,-151.0,0.00029205,7]
[364870548,1749282729143,-687.42033,0.00029205,7]
[364870549,1749282729153,-151.0,0.00029205,7]
[364870550,1749282729163,-687.42033,0.00029205,7]
[364870551,1749282729172,-151.0,0.00029205,7]
[364870552,1749282729181,-202.065599,0.00029205,7]
[364870553,1749282729191,-202.065599,0.00029205,7]
[364870554,1749282729201,-151.0,0.00029205,7]
[364870555,1749282729211,-151.0,0.00029205,7]
[364870556,1749282729220,-151.0,0.00029205,7]
[364870557,1749282729230,-562.233048,0.00029205,7]
[364870558,1749282729239,-562.233043,0.00029205,7]
[364870559,1749282729249,-182.368168,0.00029205,7]
[364870560,1749282729258,-182.368169,0.00029205,7]
[364870561,1749282729268,-336.53621,0.00029205,7]
[364870562,1749282729278,-336.5362,0.00029205,7]
[364870563,1749282729287,-151.0,0.00029205,7]
[364870564,1749282729297,-308.719033,0.00029205,7]
[364870565,1749282729307,-308.719037,0.00029205,7]
[364870566,1749282729316,-153.757701,0.00029205,7]
[364870567,1749282729326,-1715.887585,0.00029205,5]
[364870568,1749282729335,-2102.121321,0.00029205,5]
[364870569,1749282729345,-480.0,0.00029205,5]
[364870570,1749282729354,-495.78,0.00029205,5]
[364870571,1749282729364,-480.0,0.00029205,5]
[364870572,1749282729374,-813.01,0.00029205,5]
[364870573,1749282729384,-480.0,0.00029205,5]
[364870574,1749282729394,-521.83544063,0.00029205,5]
[364870575,1749282729404,-480.0,0.00029205,5]
[364870576,1749282729416,-480.0,0.00029205,5]
[364870577,1749282729425,-480.0,0.00029205,5]
[364870578,1749282729437,-480.0,0.00029205,2]
[364870579,1749282729448,-480.0,0.00029205,2]
[364870580,1749282729459,-577.15,0.00029205,5]
[364870581,1749282729468,-480.0,0.00029205,5]
[364870582,1749282729479,-509.8,0.00029205,5]
[364870583,1749282729489,-480.0,0.00029205,5]
[364870584,1749282729499,-480.0,0.00029205,5]
[364870585,1749282729509,-480.0,0.00029205,5]
[364870586,1749282729520,-480.0,0.00029205,5]
[364870587,1749282729531,-618.47,0.00029205,5]
[364870588,1749282729540,-842.56,0.00029205,5]
[364870589,1749282729550,-1163.74,0.00029205,5]
[364870590,1749282729560,-807.84,0.00029205,5]
[364870591,1749282729571,-155.707702,0.00029205,5]
[364870592,1749282729580,-480.0,0.00029205,5]
[364870593,1749282729590,-526.5,0.00029205,5]
[364870594,1749282729601,-722.49,0.00029205,5]
[364870595,1749282729610,-480.0,0.00029205,5]
[364870596,1749282729620,-658.07,0.00029205,5]
[364870597,1749282729630,-480.0,0.00029205,5]
[364870598,1749282729640,-548.11,0.00029205,5]
[364870599,1749282729652,-480.0,0.00029205,5]
[364870600,1749282729662,-480.0,0.00029205,5]
[364870601,1749282729671,-1423.16,0.00029205,5]
[364870602,1749282729681,-676.89,0.00029205,5]
[364870603,1749282729692,-1030.91,0.00029205,5]
[364870604,1749282729703,-480.0,0.00029205,5]
[364870605,1749282729713,-903.48,0.00029205,5]
[364870606,1749282729723,-545.14,0.00029205,5]
[364870607,1749282729733,-580.63,0.00029205,5]
[364870608,1749282729744,-624.11,0.00029205,5]
[364870609,1749282729754,-480.0,0.00029205,5]
[364870610,1749282729764,-1137.84,0.00029205,5]
[364870611,1749282729774,-1026.76,0.00029205,5]
[364870612,1749282729784,-480.0,0.00029205,5]
[364870613,1749282729794,-1323.94,0.00029205,5]
[364870614,1749282729805,-1037.35,0.00029205,5]
[364870615,1749282729815,-480.0,0.00029205,5]
[364870616,1749282729824,-480.0,0.00029205,5]
[364870617,1749282729833,-1212.38,0.00029205,5]
[364870618,1749282729843,-713.0,0.00029205,5]
[364870619,1749282729852,-811.35,0.00029205,5]
[364870620,1749282729862,-480.0,0.00029205,5]
[364870621,1749282729873,-634.26,0.00029205,5]
[364870622,1749282729883,-1174.57,0.00029205,5]
[364870623,1749282729894,-737.61,0.00029205,5]
[364870624,1749282729904,-1789.64,0.00029205,5]
[364870625,1749282729914,-480.0,0.00029205,5]
[364870626,1749282729923,-480.0,0.00029205,5]
[364870627,1749282729935,-480.0,0.00029205,5]
[364870628,1749282729944,-480.0,0.00029205,5]
[364870629,1749282729955,-835.68,0.00029205,5]
[364870630,1749282729967,-1115.25,0.00029205,5]
[364870631,1749282729977,-984.78,0.00029205,5]
[364870632,1749282729986,-611.81,0.00029205,5]
[364870633,1749282729996,-592.62,0.00029205,5]
[364870634,1749282730006,-480.0,0.00029205,5]
[364870635,1749282730015,-480.0,0.00029205,5]
[364870636,1749282730025,-480.0,0.00029205,5]
[364870637,1749282730035,-2016.63,0.00029205,5]
[364870638,1749282730045,-480.0,0.00029205,5]
[364870639,1749282730057,-480.0,0.00029205,5]
[364870640,1749282730067,-1504.99,0.00029205,5]
[364870641,1749282730077,-652.14,0.00029205,5]
[364870642,1749282730087,-601.8,0.00029205,5]
[364870643,1749282730098,-1444.88,0.00029205,5]
[364870644,1749282730107,-787.2,0.00029205,5]
[364870645,1749282730117,-658.72,0.00029205,5]
[364870646,1749282730127,-853.62,0.00029205,5]
[364870647,1749282730138,-879.54,0.00029205,5]
[364870648,1749282730148,-480.0,0.00029205,5]
[364870649,1749282730157,-753.65,0.00029205,5]
[364870650,1749282730166,-990.87,0.00029205,5]
[364870651,1749282730176,-480.0,0.00029205,5]
[364870652,1749282730186,-850.33,0.00029205,5]
[364870653,1749282730195,-494.24,0.00029205,5]
[364870654,1749282730204,-614.65,0.00029205,5]
[364870655,1749282730214,-768.49,0.00029205,5]
[364870656,1749282730223,-620.08,0.00029205,5]
[364870657,1749282730233,-1066.78,0.00029205,5]
[364870658,1749282730244,-715.95,0.00029205,5]
[364870659,1749282730254,-702.18,0.00029205,5]
[364870660,1749282730265,-243.21539459,0.00029205,5]
[364870661,1749282730275,-480.0,0.00029205,5]
[364870662,1749282730284,-656.54,0.00029205,5]
[364870663,1749282730294,-871.81,0.00029205,5]
[364870664,1749282730303,-674.63,0.00029205,5]
[364870665,1749282730313,-607.29,0.00029205,5]
[364870666,1749282730322,-647.25,0.00029205,5]
[364870667,1749282730334,-867.98,0.00029205,5]
[364870668,1749282730343,-1182.54,0.00029205,5]
[364870669,1749282730353,-480.0,0.00029205,5]
[364870670,1749282730363,-1150.03,0.00029205,5]
[364870671,1749282730373,-1505.03,0.00029205,5]
[364870672,1749282730383,-1473.87,0.00029205,5]
[364870673,1749282730393,-2996.31,0.00029205,5]
[364870674,1749282730403,-2181.17,0.00029205,5]
[364870675,1749282730414,-930.43,0.00029205,5]
[364870676,1749282730423,-7442.14,0.00029205,5]
[364870677,1749282730433,-480.0,0.00029205,5]
[364870678,1749282730442,-4307.55,0.00029205,5]
[364870679,1749282730452,-5891.72,0.00029205,5]
[364870680,1749282730462,-956.19,0.00029205,5]
[364870681,1749282730472,-798.07,0.00029205,5]
[364870682,1749282730482,-1206.45,0.00029205,5]
[364870683,1749282730492,-480.0,0.00029205,5]
[364870684,1749282730502,-536.84606537,0.00029205,5]
[364870685,1749282730511,-1267.21,0.00029205,5]
[364870686,1749282730520,-480.0,0.00029205,5]
[364870687,1749282730530,-503.50273148,0.00029205,5]
[364870688,1749282730540,-5617.32,0.00029205,5]
[364870689,1749282730550,-798.33,0.00029205,5]
[364870690,1749282730559,-1111.08,0.00029205,5]
[364870691,1749282730570,-1613.36,0.00029205,5]
[364870692,1749282730580,-665.13,0.00029205,5]
[364870693,1749282730590,-984.27,0.00029205,5]
[364870694,1749282730600,-8194.39,0.00029205,5]
[364870695,1749282730610,-10955.06,0.00029205,5]
[364870696,1749282730620,-835.03,0.00029205,5]
[364870697,1749282730629,-3592.23,0.00029205,5]
[364870698,1749282730639,-675.89,0.00029205,5]
[364870699,1749282730648,-480.0,0.00029205,5]
[364870700,1749282730658,-1342.98,0.00029205,5]
[364870701,1749282730667,-3803.92,0.00029205,5]
[364870702,1749282730676,-1427.01,0.00029205,5]
[364870703,1749282730687,-2538.94,0.00029205,5]
[364870704,1749282730696,-1719.89,0.00029205,5]
[364870705,1749282730706,-1821.11,0.00029205,5]
[364870706,1749282730716,-1325.93,0.00029205,5]
[364870707,1749282730726,-480.0,0.00029205,5]
[364870708,1749282730735,-1072.0,0.00029205,5]
[364870709,1749282730744,-1892.42,0.00029205,5]
[364870710,1749282730754,-63362.5,0.00029205,5]
[364870711,1749282730764,-1666.49,0.00029205,5]
[364870712,1749282730774,-769.25,0.00029205,5]
[364870713,1749282730783,-480.0,0.00029205,5]
[364870714,1749282730793,-622.41,0.00029205,5]
[364870715,1749282730803,-802.83,0.00029205,5]
[364870716,1749282730812,-3297.59,0.00029205,5]
[364870717,1749282730821,-1257.45,0.00029205,5]
[364870718,1749282730832,-1298.4,0.00029205,5]
[364870719,1749282730842,-619.63,0.00029205,5]
[364870720,1749282730852,-480.0,0.00029205,5]
[364870721,1749282730862,-2010.42,0.00029205,5]
[364870722,1749282730872,-1795.02,0.00029205,5]
[364870723,1749282730883,-2147.53,0.00029205,2]
[364870724,1749282730894,-480.0,0.00029205,5]
[364870725,1749282730904,-2644.51,0.00029205,5]
[364870726,1749282730915,-1671.91,0.00029205,5]
[364870727,1749282730924,-480.0,0.00029205,5]
[364870728,1749282730935,-480.0,0.00029205,5]
[364870729,1749282730945,-2770.74,0.00029205,5]
[364870730,1749282730955,-3633.12,0.00029205,5]
[364870731,1749282730966,-480.0,0.00029205,5]
[364870732,1749282730976,-6110.32,0.00029205,5]
[364870733,1749282730986,-1513.66,0.00029205,5]
[364870734,1749282730996,-1788.9,0.00029205,5]
[364870735,1749282731007,-814.18,0.00029205,5]
[364870736,1749282731017,-11876.34,0.00029205,5]
[364870737,1749282731027,-2522.98,0.00029205,5]
[364870738,1749282731036,-959.52,0.00029205,5]
[364870739,1749282731046,-1093.12,0.00029205,5]
[364870740,1749282731056,-1813.84,0.00029205,5]
[364870741,1749282731066,-481.61,0.00029205,5]
[364870742,1749282731077,-480.0,0.00029205,5]
[364870743,1749282731087,-6018.65,0.00029205,5]
[364870744,1749282731097,-1581.96,0.00029205,5]
[364870745,1749282731107,-855.47,0.00029205,5]
[364870746,1749282731117,-480.0,0.00029205,5]
[364870747,1749282731127,-572.41582821,0.00029205,5]
[364870748,1749282731137,-5571.7,0.00029205,5]
[364870749,1749282731147,-1003.3,0.00029205,5]
[364870750,1749282731157,-1086.55,0.00029205,5]
[364870751,1749282731167,-1345.91,0.00029205,5]
[364870752,1749282731178,-1327.04,0.00029205,5]
[364870753,1749282731187,-2008.91,0.00029205,5]
[364870754,1749282731197,-1675.33,0.00029205,5]
[364870755,1749282731208,-734.71,0.00029205,5]
[364870756,1749282731218,-1529.93,0.00029205,5]
[364870757,1749282731228,-596.66,0.00029205,5]
[364870758,1749282731238,-480.0,0.00029205,5]
[364870759,1749282731248,-480.0,0.00029205,5]
[364870760,1749282731259,-1453.1,0.00029205,5]
[364870761,1749282731269,-3865.55,0.00029205,5]
[364870762,1749282731282,-3264.83,0.00029205,5]
[364870763,1749282731292,-967.54,0.00029205,5]
[364870764,1749282731301,-480.0,0.00029205,5]
[364870765,1749282731310,-871.56,0.00029205,5]
[364870766,1749282731319,-1458.57,0.00029205,5]
[364870767,1749282731329,-749.45,0.00029205,5]
[364870768,1749282731340,-915.39,0.00029205,5]
[364870769,1749282731350,-4023.49,0.00029205,5]
[364870770,1749282731360,-1170.49,0.00029205,5]
[364870771,1749282731370,-514.64530923,0.00029205,5]
[364870772,1749282731381,-742.56,0.00029205,5]
[364870773,1749282731391,-594.14,0.00029205,5]
[364870774,1749282731402,-1731.59,0.00029205,5]
[364870775,1749282731412,-1143.16,0.00029205,5]
[364870776,1749282731422,-480.0,0.00029205,5]
[364870777,1749282731431,-2029.78,0.00029205,5]
[364870778,1749282731441,-2000.65,0.00029205,5]
[364870779,1749282731451,-480.0,0.00029205,5]
[364870780,1749282731461,-1386.31,0.00029205,5]
[364870781,1749282731472,-485.39,0.00029205,5]
[364870782,1749282731482,-683.94,0.00029205,5]
[364870783,1749282731491,-747.9,0.00029205,5]
[364870784,1749282731501,-1122.69,0.00029205,5]
[364870785,1749282731512,-480.0,0.00029205,5]
[364870786,1749282731522,-480.0,0.00029205,5]
[364870787,1749282731531,-480.0,0.00029205,5]
[364870788,1749282731541,-494.08,0.00029205,5]
[364870789,1749282731550,-518.65,0.00029205,5]
[364870790,1749282731560,-492.12,0.00029205,5]
[364870791,1749282731570,-1941.16,0.00029205,5]
[364870792,1749282731579,-788.44,0.00029205,5]
[364870793,1749282731589,-480.0,0.00029205,5]
[364870794,1749282731599,-480.0,0.00029205,5]
[364870795,1749282731608,-499.42,0.00029205,5]
[364870796,1749282731618,-2403.78,0.00029205,5]
[364870797,1749282731627,-757.09,0.00029205,5]
[364870798,1749282731637,-480.0,0.00029205,5]
[364870799,1749282731647,-957.28,0.00029205,5]
[364870800,1749282731657,-697.95,0.00029205,5]
[364870801,1749282731667,-575.71,0.00029205,5]
[364870802,1749282731677,-480.0,0.00029205,5]
[364870803,1749282731687,-748.21,0.00029205,5]
[364870804,1749282731697,-480.0,0.00029205,5]
[364870805,1749282731707,-607.22,0.00029205,5]
[364870806,1749282731717,-480.0,0.00029205,5]
[364870807,1749282731727,-5005.59,0.00029205,5]
[364870808,1749282731736,-10865.99,0.00029205,5]
[364870809,1749282731745,-4322.98,0.00029205,5]
[364870810,1749282731756,-1739.86,0.00029205,5]
[364870811,1749282731765,-630.74,0.00029205,5]
[364870812,1749282731775,-480.0,0.00029205,5]
[364870813,1749282731784,-480.0,0.00029205,5]
[364870814,1749282731794,-1078.23,0.00029205,5]
[364870815,1749282731804,-480.0,0.00029205,5]
[364870816,1749282731814,-1387.38,0.00029205,5]
[364870817,1749282731823,-689.06,0.00029205,5]
[364870818,1749282731832,-480.0,0.00029205,5]
[364870819,1749282731842,-16410.82,0.00029205,5]
[364870820,1749282731852,-1650.11,0.00029205,5]
[364870821,1749282731862,-7442.43,0.00029205,5]
[364870822,1749282731872,-3593.96,0.00029205,5]
[364870823,1749282731882,-749.65,0.00029205,5]
[364870824,1749282731895,-2124.13,0.00029205,5]
[364870825,1749282731905,-590.0,0.00029205,5]
[364870826,1749282731914,-816.17,0.00029205,5]
[364870827,1749282731924,-665.9,0.00029205,5]
[364870828,1749282731934,-2227.22,0.00029205,5]
[364870829,1749282731943,-1352.48,0.00029205,5]
[364870830,1749282731953,-507.82,0.00029205,5]
[364870831,1749282731965,-480.0,0.00029205,5]
[364870832,1749282731975,-1744.26,0.00029205,5]
[364870833,1749282731984,-480.0,0.00029205,5]
[364870834,1749282731994,-3612.7,0.00029205,5]
[364870835,1749282732003,-480.0,0.00029205,5]
[364870836,1749282732012,-480.0,0.00029205,5]
[364870837,1749282732023,-480.0,0.00029205,5]
[364870838,1749282732032,-1656.96,0.00029205,5]
[364870839,1749282732041,-1260.39,0.00029205,5]
[364870840,1749282732051,-915.34,0.00029205,5]
[364870841,1749282732060,-3111.73,0.00029205,5]
[364870842,1749282732070,-980.64,0.00029205,5]
[364870843,1749282732079,-642.18,0.00029205,5]
[364870844,1749282732089,-279.10775981,0.00029206,7]
[364870845,1749282732099,-218.84593086,0.00029206,7]
[364870846,1749282732109,-150.0,0.00029211,7]
[364870847,1749282732118,-150.0,0.00029218,7]
[364870848,1749282732127,-150.0,0.00029229,7]
[364870849,1749282732137,-279.10775981,0.00029238,7]
[364870850,1749282732147,-218.84593086,0.00029238,7]
[364870851,1749282732157,-211.0,0.0002925,2]
[364870852,1749282732167,-165.22,0.00029257,2]
[364870853,1749282732176,-150.0,0.00029263,7]
[364870854,1749282732185,-495.74977148,0.00029269,2]
[364870855,1749282732195,-279.10775981,0.0002927,7]
[364870856,1749282732204,-218.84593086,0.0002927,7]
[364870857,1749282732214,-150.0,0.00029272,7]
[364870858,1749282732224,-150.0,0.00029276,7]
[364870859,1749282732234,-150.0,0.0002928,7]
[364870860,1749282732244,-150.0,0.0002929,7]
[364870861,1749282732254,-1067.88,0.000293,2]
[364870862,1749282732264,-1681.21,0.000293,2]
[364870863,1749282732275,-2749.29,0.000293,2]
[364870864,1749282732284,-2749.3,0.000293,2]
[364870865,1749282732295,-2749.29,0.000293,2]
[364870866,1749282732305,-2453.79,0.000293,2]
[364870867,1749282732315,-587.78,0.000293,2]
[364870868,1749282732326,-3118.73,0.000293,2]
[364870869,1749282732336,-251.794654,0.000293,7]
[364870870,1749282732347,-42044.0,0.000293,2]
[364870871,1749282732357,-279.10775981,0.00029302,7]
[364870872,1749282732367,-218.84593086,0.00029302,7]
[364870873,1749282732377,-150.0,0.00029309,7]
[364870874,1749282732387,-150.0,0.00029315,7]
[364870875,1749282732397,-340.8,0.00029315,2]
[364870876,1749282732408,-2000.0,0.00029316,60]
[364870877,1749282732418,-1000.0,0.00029318,7]
[364870878,1749282732428,-279.10775981,0.00029334,7]
[364870879,1749282732438,-218.84593086,0.00029334,7]
[364870880,1749282732448,-150.0,0.00029341,7]
[364870881,1749282732458,-212.0,0.0002935,30]
[364870882,1749282732468,-207.0,0.0002935,2]
[364870883,1749282732478,-150.0,0.00029354,7]
[364870884,1749282732488,-150.0,0.00029358,7]
[364870885,1749282732498,-150.0,0.00029361,7]
[364870886,1749282732508,-150.0,0.00029361,7]
[364870887,1749282732518,-279.10775981,0.00029366,7]
[364870888,1749282732529,-218.84593086,0.00029366,7]
[364870889,1749282732539,-636.82,0.00029369,5]
[364870890,1749282732549,-200.157319,0.00029369,7]
[364870891,1749282732559,-151.0,0.00029369,7]
[364870892,1749282732568,-158.963045,0.00029369,5]
[364870893,1749282732579,-1715.887585,0.00029369,5]
[364870894,1749282732588,-2102.121321,0.00029369,5]
[364870895,1749282732598,-480.0,0.00029369,5]
[364870896,1749282732607,-495.78,0.00029369,5]
[364870897,1749282732617,-480.0,0.00029369,5]
[364870898,1749282732627,-813.01,0.00029369,5]
[364870899,1749282732636,-480.0,0.00029369,5]
[364870900,1749282732646,-480.0,0.00029369,5]
[364870901,1749282732656,-480.0,0.00029369,5]
[364870902,1749282732666,-480.0,0.00029369,5]
[364870903,1749282732676,-480.0,0.00029369,2]
[364870904,1749282732685,-577.15,0.00029369,5]
[364870905,1749282732695,-480.0,0.00029369,5]
[364870906,1749282732705,-509.8,0.00029369,5]
[364870907,1749282732715,-480.0,0.00029369,5]
[364870908,1749282732725,-480.0,0.00029369,5]
[364870909,1749282732734,-159.95607302,0.00029369,5]
[364870910,1749282732744,-480.0,0.00029369,5]
[364870911,1749282732754,-618.47,0.00029369,5]
[364870912,1749282732764,-842.56,0.00029369,5]
[364870913,1749282732774,-1163.74,0.00029369,5]
[364870914,1749282732784,-807.84,0.00029369,5]
[364870915,1749282732794,-480.0,0.00029369,5]
[364870916,1749282732804,-526.5,0.00029369,5]
[364870917,1749282732814,-722.49,0.00029369,5]
[364870918,1749282732825,-480.0,0.00029369,5]
[364870919,1749282732834,-658.07,0.00029369,5]
[364870920,1749282732844,-480.0,0.00029369,5]
[364870921,1749282732853,-548.11,0.00029369,5]
[364870922,1749282732863,-480.0,0.00029369,5]
[364870923,1749282732875,-584.14,0.00029369,5]
[364870924,1749282732888,-1423.16,0.00029369,5]
[364870925,1749282732898,-676.89,0.00029369,5]
[364870926,1749282732908,-1030.91,0.00029369,5]
[364870927,1749282732918,-480.0,0.00029369,5]
[364870928,1749282732928,-903.48,0.00029369,5]
[364870929,1749282732939,-545.14,0.00029369,5]
[364870930,1749282732949,-580.63,0.00029369,5]
[364870931,1749282732959,-624.11,0.00029369,5]
[364870932,1749282732969,-480.0,0.00029369,5]
[364870933,1749282732980,-1137.84,0.00029369,5]
[364870934,1749282732989,-1026.76,0.00029369,5]
[364870935,1749282732999,-480.0,0.00029369,5]
[364870936,1749282733009,-1323.94,0.00029369,5]
[364870937,1749282733020,-1037.35,0.00029369,5]
[364870938,1749282733030,-480.0,0.00029369,5]
[364870939,1749282733040,-480.0,0.00029369,5]
[364870940,1749282733050,-1212.38,0.00029369,5]